[Event "Candidates Tournament (Women)"]
[Site "Kazan"]
[Date "2019.06.01"]
[Round "2"]
[White "Goryachkina, Aleksandra"]
[Black "Gunina, Valentina"]
[Result "1-0"]
[ECO "E15"]
[WhiteElo "2522"]
[BlackElo "2506"]
[Annotator "Paehtz,E"]
[PlyCount "183"]
[EventDate "2019.05.31"]
[EventType "tourn"]
[EventRounds "14"]
[EventCountry "RUS"]
[EventCategory "12"]
[SourceTitle "CBM 191"]
[Source "ChessBase"]
[SourceDate "2019.08.31"]
[SourceVersion "1"]
[SourceVersionDate "2019.08.31"]
[SourceQuality "1"]
[TimeControl "40/5400+30:1800+30"]

{[%evp 8,182,16,7,17,3,1,-8,0,-8,0,-16,36,3,0,10,14,-18,12,-10,31,0,35,0,21,49,
58,33,33,28,42,28,48,35,31,37,53,45,60,47,66,32,37,6,29,1,47,37,56,47,56,52,64,
56,60,42,45,54,50,0,0,3,1,0,101,102,120,125,107,104,92,116,110,0,0,0,114,104,
133,32,93,27,24,0,32767,32767,32767,32767,32767,32767,32767,32767,32767,32767,
32767,32767,32767,32767,32767,32767,32767,32767,32767,32767,32767,32767,32767,
32767,32767,32767,32767,32767,32767,32767,32767,32767,32767,32767,32767,32767,
32767,32767,32767,32767,32767,32767,32767,32767,32767,32767,32767,32767,32767,
32767,32767,32767,32767,32767,32767,32767,32767,32767,32767,32767,32767,32767,
32767,32767,32767,32767,32767,32767,32767,32767,32767,29986,29986,29987,29987,
29985,29987,29988,29988,29989,29989,29989,29989,29990,29990,29991,29991,29992,
29992,29993,29993,29994,29994]} {It seems that especially the Russian
encounters take care of real excitement which to me is hardly a surprise when
my favourite tactical magician Valentina Gunina is involved.} 1. d4 {[%emt 0:
00:00]} Nf6 {[%emt 0:00:04]} 2. c4 {[%emt 0:00:00]} e6 {[%emt 0:00:09] Valja's
main weapon used to be the Slav defense, which is naturally connected to her
former main coach Malakhov. In the past few years she added the Nimzo and
Queen's Indian to her repertoire which may perhaps explain that her time
management is not as fast as it used to be.} 3. Nf3 {[%emt 0:00:00]} b6 {
[%emt 0:00:58]} 4. g3 {[%emt 0:00:10]} Ba6 {[%emt 0:00:18]} 5. Qc2 {[%emt 0:00:
44] is the first moment Valja had to take a serious decision. Her choice
meaning she is ready for an opening knowledge battle where she was likely
aware that her younger compatriot will be much better prepared.} c5 $5 {
[%emt 0:07:39] A very brave choice by the former European Women's Champion.
Checking this move in both players' databases - 0 games!} (5... Bb7 6. Bg2 Be7
{or} (6... Bb4+ {would have probably gotten my preference, taking into regard
that I am not among the brave ones and hate forced lines when being surprised.}
)) 6. d5 {[%emt 0:00:29]} exd5 {[%emt 0:00:10]} 7. cxd5 {[%emt 0:00:06]} Bb7 {
[%emt 0:00:04]} 8. Bg2 {[%emt 0:00:40]} Nxd5 {[%emt 0:00:57]} 9. O-O {[%emt 0:
00:50]} Be7 {[%emt 0:00:20]} 10. Rd1 {[%emt 0:02:31]} Nc6 {[%emt 0:00:23]} 11.
a3 $5 {[%emt 0:01:24] Going off the main road.} (11. Rxd5 $2 Nb4 $17 {[%mdl 64]
Double Attack}) (11. Qa4 $5 {is the main line which leads after} Nf6 12. Nh4
O-O 13. Nf5 d5 14. Nc3 Nd4 15. Nxd4 {to a quite high drawing statistics.})
11... Nc7 {[%emt 0:23:44]} (11... Nf6 $5 12. e4 O-O 13. e5 Ne8 14. Nc3 Nc7 15.
Be3 $36) 12. Nc3 {[%emt 0:02:46]} O-O {[%emt 0:08:01]} 13. Bf4 {[%emt 0:00:38]
[#]} d6 $146 {[%emt 0:09:19]} (13... Ne6 14. e3 Nxf4 15. exf4 $44 (15. gxf4 d6
{seems objectively in favour for Black.})) 14. e3 {[%emt 0:18:30]} h6 $6 {
[%emt 0:17:49] This is rather weakening Black's position.} ({We were wondering
during the commentary if our Russian magician might even come up with
something crazy like} 14... g5 $2 {but we both decided that this is slightly
too ambitious for a classical game indeed and will not be working by engines
or even human intuition at all.} 15. Nxg5 Bxg5 16. Bxc6 (16. Rxd6 Qe7 17. Bxc6
$16) 16... Bxc6 17. Rxd6 Qe7 18. Rxc6 $18) 15. h4 $6 {[%emt 0:04:21] A very
human response but with the small drawback that after Black's next move the
capture of the bishop on f4 may not be in accordance with a hanging pawn on h4
and therefore reduces the option of gxf4 eventually. Additionally, it blocks
the square for White's knight on its road via h4 to f5.} (15. Nh4 $1 Bxh4 16.
gxh4 Ne8 (16... Qxh4 $2 17. Bg3 Qd8 (17... Qg5 18. Rxd6 $18) 18. Rxd6 Qe8 19.
Qa4 $16) 17. Nb5 $36) 15... Ne6 {[%emt 0:08:57] [#]} (15... Qc8 {was one
option we considered during the live commentary. Indeed it gives away the
extra material but taking into account that Valja was already pretty low on
time, it would have been a good idea to simplify.} 16. Bxd6 Bxd6 17. Rxd6 Rd8
18. Rad1 Rxd6 19. Rxd6 Ne8 20. Rd1 Nf6 $14) (15... Qd7 $1 {The engine always
knows it better, but that's the move Black should have played in order to keep
equality.} 16. Ne5 Nxe5 17. Bxb7 Rab8 18. Be4 Bf6 $13) 16. Bxd6 $1 {[%emt 0:09:
03]} Bxd6 {[%emt 0:02:54]} (16... Qe8 $5 17. Bxe7 Nxe7 18. Ne4 {with a very
nice advantage for White.}) 17. Ne4 {[%emt 0:00:50] [#]} (17. Nb5 $5 {[%cal
Rb5d6]} Ncd4 18. Nfxd4 Nxd4 19. exd4 Bxg2 20. Kxg2 Qf6 21. Nxd6 Qxd6 22. dxc5
Qc6+ 23. Kg1 bxc5 $14 {but Black should hold.}) 17... Ncd4 $1 {[%emt 0:04:31]}
18. exd4 {[%emt 0:01:15]} Bxe4 {[%emt 0:03:06]} (18... Nxd4 $5 19. Nxd4 cxd4
20. Rxd4 Bxe4 21. Bxe4 Qf6 $1 22. Rd2 Rac8 $11) 19. Qxe4 {[%emt 0:00:28]} Qf6 {
[%emt 0:00:09]} 20. dxc5 {[%emt 0:15:17]} Nxc5 {[%emt 0:02:48]} 21. Qd4 {
[%emt 0:02:09]} Nb3 {[%emt 0:04:34] Practically speaking, probably the best
choice in this position.} (21... Be7 $5 22. b4 Ne6 23. Qe3 $36) 22. Qxf6 {
[%emt 0:03:10]} ({Worse is} 22. Qxd6 Qxd6 23. Rxd6 Nxa1 $17) 22... gxf6 {
[%emt 0:00:01]} 23. Rab1 {[%emt 0:08:58]} Rad8 {[%emt 0:00:02]} 24. Nh2 {
[%emt 0:00:52]} (24. Rd3 $5 {[%cal Rd3b3]} Nc5 25. Rd5 $14 Bc7 26. Nd4 Rxd5 27.
Bxd5 Rd8 28. Nf5 $14) 24... Bc5 {[%emt 0:01:02]} 25. Ng4 {[%emt 0:03:46]} Kg7 {
[%emt 0:00:49]} 26. Bd5 {[%emt 0:05:18]} Nd4 {[%emt 0:00:05]} 27. Ne3 {[%emt 0:
00:21]} b5 {[%emt 0:00:43]} 28. Kg2 {[%emt 0:03:45]} Rfe8 {[%emt 0:00:16]} 29.
Rd3 {[%emt 0:01:54]} Re5 {[%emt 0:01:42]} 30. Ba2 {[%emt 0:02:11]} Nc6 {
[%emt 0:01:48]} 31. Rxd8 {[%emt 0:02:33]} Nxd8 {[%emt 0:00:01]} 32. Rd1 {
[%emt 0:00:23]} Ne6 {[%emt 0:01:48]} 33. Bxe6 $6 {[%emt 0:05:05] Well, in time
trouble this move is without any risk but eventually spoils the chance for any
advantage at all. Black improves his pawn structure and could anytime aim for
a rook ending without any risk. Indeed Black "could", but did not and had to
pay.} ({Better is} 33. Rd7 $1 Bxe3 34. fxe3 Rxe3 35. Kf2 Re5 36. Rxa7 $14)
33... fxe6 {[%emt 0:00:25]} 34. Rd7+ {[%emt 0:00:21]} Kg6 {[%emt 0:00:08]} 35.
Kf3 {[%emt 0:00:10]} h5 $4 {[%emt 0:00:49] We were pretty puzzled and until
now it doesn't seem clear what was going on in Gunina's mind. Was she still
hoping for a chance to play for a win? Or did she underestimate the fact that
this knight could cause any danger at all? Eventually, it is this very
particular piece to decide the fate of the game.} (35... Bxe3 $1 $11 36. fxe3
a5 37. b4 a4 $11) 36. Ng2 $1 {[%emt 0:00:53]} Kh6 {[%emt 0:00:50]} 37. Nf4 {
[%emt 0:00:22]} a5 {[%emt 0:00:31]} 38. Nd3 {[%emt 0:02:58]} Rf5+ {[%emt 0:00:
15]} 39. Ke2 {[%emt 0:00:08]} Bf8 $1 $11 {[%emt 0:00:44] The best defending
resource for Black. As passive as the bishop back there may look like, it is
the best square not to be hunted down or putting other pieces or pawns at risk.
} 40. Ke3 {[%emt 0:00:00] A move to pass the time control, however, it might
have been wise to fix the pawn structure on the queenside instead.} (40. b4 $5
$16) 40... Bc5+ $1 {[%emt 0:00:00]} 41. Ke2 {[%emt 0:04:05]} a4 $1 {[%emt 0:12:
07] And b2/a3 will potentially be targets a life time.} 42. f3 {[%emt 0:07:18]}
Bf8 {[%emt 0:00:59]} (42... Bb6) 43. Ke3 {[%emt 0:01:05]} Kg6 {[%emt 0:04:06]}
(43... Bc5+ $5 $14) 44. Ke4 {[%emt 0:04:37]} (44. Nf4+ $5 Kh6 45. Kd2 Re5 46.
Rf7 Bg7 47. Rb7 $16) 44... Kh6 {[%emt 0:04:21]} 45. Ke3 {[%emt 0:06:57]} Kg6 {
[%emt 0:00:57]} 46. Ke2 {[%emt 0:01:00]} Kh6 {[%emt 0:02:18]} 47. g4 $1 $16 {
[%emt 0:02:42] [#]} hxg4 {[%emt 0:02:22]} (47... Rd5 48. Rf7) 48. fxg4 {
[%emt 0:00:01]} Rd5 {[%emt 0:00:06]} 49. Rf7 {[%emt 0:01:29]} (49. Rxd5 $5 {
will not be enough:} exd5 50. Ke3 (50. Nf4 Bd6 51. Nxd5 Be5 52. Nc3 b4 53. Nxa4
bxa3 54. bxa3 f5 55. gxf5 Bd6 $11) 50... Bg7 $1 $11 {and Black survives due to
his saving resource of f6-f5.}) 49... Bg7 {[%emt 0:00:47]} 50. Nf4 {[%emt 0:00:
34]} Re5+ {[%emt 0:03:40]} 51. Kf3 {[%emt 0:01:40]} Re1 {[%emt 0:01:35]} 52.
Rb7 {[%emt 0:03:58]} Rf1+ {[%emt 0:01:26]} 53. Ke3 {[%emt 0:00:36]} Bf8 {
[%emt 0:01:18]} 54. Rxb5 {[%emt 0:00:24]} Bd6 {[%emt 0:00:39]} 55. Rh5+ {
[%emt 0:00:31]} Kg7 {[%emt 0:00:01]} 56. Nxe6+ {[%emt 0:00:15]} Kg6 {[%emt 0:
00:41]} (56... Kf7 57. Nd8+ Ke8 58. Rh8+ Kd7 59. Nb7 $18) 57. Nd4 {[%emt 0:01:
05]} Be5 {[%emt 0:00:38]} 58. Nf3 {[%emt 0:03:38]} (58. Nf5 $1 Bxb2 59. Rh6+
Kf7 60. Rh7+ Ke6 61. Ra7 Bxa3 62. Rxa4 {with practically even better chances
to win than in the game.}) 58... Bxb2 {[%emt 0:00:14]} 59. Ra5 {[%emt 0:00:08]}
Bxa3 {[%emt 0:00:17]} 60. Rxa4 {[%emt 0:00:10]} Bc5+ {[%emt 0:00:10]} 61. Ke4 {
[%emt 0:00:24]} Rf2 {[%emt 0:01:29]} 62. h5+ {[%emt 0:00:29]} Kg7 {[%emt 0:00:
22]} 63. Nh4 {[%emt 0:01:17]} Kh6 {[%emt 0:00:33]} 64. Ra5 {[%emt 0:00:37]}
Re2+ {[%emt 0:01:08]} 65. Kf3 {[%emt 0:00:26]} Rf2+ {[%emt 0:00:38]} 66. Kg3 {
[%emt 0:01:08]} Rc2 {[%emt 0:00:05]} 67. Nf5+ {[%emt 0:00:25]} Kg5 {[%emt 0:00:
33]} 68. h6 {[%emt 0:00:40]} Rc3+ {[%emt 0:00:10]} 69. Kg2 {[%emt 0:00:13] [#]}
Kxg4 $4 {[%emt 0:00:12] Taking such a pawn with seconds on the clock is an act
of iron nerves or Hercules strength. I honestly think sometimes it is not bad
to be a chicken. Valja is rather a serial killer with generally speaking the
lowest percentage of draws compared to the rest of the field. Since knowing
this ruthless and courage approach from her a life time, I can assure you that
in her case it usually pays off. My Latin teacher, however, used to say:
"Exceptio probat regulam in casibus non exceptis!"} (69... Kg6 {should save
the game with no risk at all...}) 70. h7 {[%emt 0:00:43]} Rc2+ {[%emt 0:00:08]}
71. Kf1 {[%emt 0:00:39]} Rh2 {[%emt 0:01:11]} (71... Rf2+ {does not save Black
from her destiny:} 72. Kg1 $1 Rxf5+ 73. Rxc5 Rxc5 74. h8=Q $18) 72. Nh4 $3 {
[%emt 0:00:45] [#] A move I bet Alexsandra just spotted in this very
particular moment.} Kg3 {[%emt 0:01:18]} 73. h8=Q {[%emt 0:00:31]} Rf2+ {
[%emt 0:00:10]} 74. Ke1 {[%emt 0:00:14]} Bb4+ {[%emt 0:00:03]} 75. Kd1 {
[%emt 0:00:04]} Bxa5 {[%emt 0:00:04]} 76. Ng6 {[%emt 0:00:15]} Bd2 {[%emt 0:01:
39]} 77. Qh4+ {[%emt 0:00:28]} Kf3 {[%emt 0:00:35]} 78. Qxf6+ {[%emt 0:00:27]}
Kg2 {[%emt 0:00:19]} 79. Qc6+ {[%emt 0:00:11]} Kg1 {[%emt 0:00:42]} 80. Nh4 {
[%emt 0:00:37]} Bf4 {[%emt 0:00:22]} 81. Qg6+ {[%emt 0:00:38]} Kh2 {[%emt 0:00:
25]} 82. Qg4 {[%emt 0:00:48]} ({Weaker is} 82. Ke1 Bg3 $14) 82... Bg3 {[%emt 0:
00:38]} 83. Nf5 {[%emt 0:00:25]} Rf1+ {[%emt 0:00:36]} 84. Ke2 {[%emt 0:00:23]}
Rf2+ {[%emt 0:00:22]} 85. Kd3 {[%emt 0:00:28]} Rg2 {[%emt 0:00:22]} 86. Qh5+ {
[%emt 0:00:36]} Kg1 {[%emt 0:00:04]} 87. Ne3 {[%emt 0:00:45]} Ra2 {[%emt 0:00:
37] [#]} 88. Qg6 $1 {[%emt 0:00:49]} Kh2 {[%emt 0:00:48]} 89. Qh7+ {[%emt 0:00:
13]} Kg1 {[%emt 0:00:04] [#]} 90. Qg8 $1 {[%emt 0:00:09]} Ra3+ {[%emt 0:00:15]}
91. Ke2 {[%emt 0:00:20]} Kh2 {[%emt 0:01:07]} 92. Kf3 {[%emt 0:00:25] After
Alexsandra missed her very good chance in her previous game, she eventually
got rewarded this time.} 1-0

[Event "Sautron op 15th"]
[Site "Sautron"]
[Date "2015.10.24"]
[Round "3.7"]
[White "Barbot, Pierre"]
[Black "Ibrahim, Hatim"]
[Result "0-1"]
[ECO "E15"]
[WhiteElo "2447"]
[BlackElo "2311"]
[Annotator "RR"]
[PlyCount "68"]
[EventDate "2015.10.24"]
[EventType "swiss"]
[EventRounds "9"]
[EventCountry "FRA"]
[SourceTitle "CBM 169 Extra"]
[Source "ChessBase"]
[SourceDate "2015.12.18"]
[SourceVersion "1"]
[SourceVersionDate "2015.12.18"]
[SourceQuality "1"]
[TimeControl "40/5400+30:1800+30"]
[WhiteClock "0:06:31"]
[BlackClock "0:09:23"]

1. d4 {[%emt 0:00:00]} Nf6 {[%emt 0:00:00]} 2. c4 {[%emt 0:00:00]} e6 {[%emt 0:
00:22]} 3. Nf3 {[%emt 0:00:00]} b6 {[%emt 0:00:37]} 4. g3 {[%emt 0:00:00]} Ba6
{[%emt 0:00:20]} (4... Bb7) 5. Qb3 {[%emt 0:00:00]} (5. Qc2) (5. b3 {La grande
ligne} Bb4+ (5... Bb7 6. Bg2 Bb4+ 7. Bd2 a5) 6. Bd2 Be7) 5... Nc6 $1 {[%emt 0:
01:21][%cal Gc6a5,Ga5b3,Ga5c4] Exploitant la position un peu artificielle de
la Qb3} 6. Nbd2 {[%emt 0:01:01][%cal Gd2c4,Ge2e4]} (6. Bd2 $5 {[%csl Ga5]} Rb8
{[%cal Gb8b3]} 7. Bg2 Na5 $5 {[%cal Gb8b3]}) 6... Bb7 {[%emt 0:01:57]} (6...
Na5 7. Qa4 Bb7 8. Bg2 Rc8 9. c5 Nc6 10. Ne5 Nd5 11. Nd3 a5 12. O-O Ba6 13. Ne4
b5 14. Qd1 Nxd4 15. Nf4 Nxf4 16. Bxf4 Nc6 17. Qb3 b4 18. Rfd1 Bxe2 19. Rd2 Bh5
20. g4 Bg6 21. Rad1 Nb8 22. Qe3 Be7 23. c6 d5 24. Nf6+ gxf6 25. Bxd5 e5 26.
Bxf7+ Kxf7 27. Rxd8 Rhxd8 28. Qb3+ Kg7 29. Be3 Nxc6 30. Rxd8 Rxd8 31. Qe6 Bf7
32. Qf5 Nd4 {0-1 (32) Sargissian,G (2673)-Harikrishna,P (2740) Linares 2015})
7. e4 {[%emt 0:06:15] La ligne critique} Be7 {[%emt 0:02:35]} (7... d5 {
La grande ligne} 8. cxd5 exd5 9. e5) 8. d5 $5 {[%emt 0:02:42]} (8. Bg2 O-O 9.
O-O d6 10. d5 $14 {Aronian,L (2648)-Schmaltz,R (2527) GER-ch Internet g/5'
blitz 2004 (10) 1-0}) 8... exd5 {[%emt 0:02:36]} 9. exd5 {[%emt 0:02:25]} Nb4 {
[%emt 0:09:27]} (9... Na5) 10. Bg2 {[%emt 0:07:06]} O-O {[%emt 0:02:00]} 11.
O-O {[%emt 0:01:17]} c6 $1 {[%emt 0:06:38]} 12. a3 {[%emt 0:06:09]} Na6 {
[%emt 0:00:25]} 13. dxc6 {[%emt 0:00:03]} dxc6 {[%emt 0:01:21]} 14. Qc3 $146 {
[%emt 0:05:19]} (14. Ne5 Qc7 15. Ndf3 Nc5 16. Qc2 a5 17. Bd2 Nce4 18. Bf4 Bd6
19. Nd3 c5 20. a4 Rad8 21. Rad1 h6 22. Bc1 Rfe8 23. Nh4 Qc8 24. b3 Bf8 25. Bb2
Ng4 26. h3 Ngf6 27. Kh2 Bd6 28. f4 Nh5 29. g4 Nhg3 30. Rf3 Be7 31. Rxg3 Nxg3
32. Bxb7 Qxb7 33. Kxg3 Bxh4+ 34. Kxh4 Re3 35. Nf2 Rxd1 36. Nxd1 Qe7+ 37. g5
hxg5+ 38. fxg5 Re4+ 39. Kg3 Qxg5+ 40. Kf2 Qf5+ 41. Kg3 Rg4+ {0-1 (41)
Percivaldi,M (2310)-Brunello,S (2539) Helsingor 2015}) 14... Nc5 {[%emt 0:05:
05]} 15. b4 {[%emt 0:04:43]} Nd3 {[%emt 0:11:58]} 16. Nd4 {[%emt 0:00:34]} Nxc1
{[%emt 0:02:47]} 17. Raxc1 {[%emt 0:00:02]} Qd7 {[%emt 0:02:21]} 18. Rfe1 {
[%emt 0:08:02]} Rfe8 {[%emt 0:02:40]} 19. c5 {[%emt 0:23:42]} bxc5 {[%emt 0:01:
10]} 20. bxc5 {[%emt 0:00:02]} Rad8 {[%emt 0:01:29]} 21. N2b3 {[%emt 0:00:24]
[%csl Rb7,Rc6][%cal Gb3a5]} Nd5 {[%emt 0:03:48]} 22. Qc4 {[%emt 0:00:04]} Qc7 {
[%emt 0:10:17]} 23. Qa4 {[%emt 0:00:35]} Ba8 {[%emt 0:08:53]} 24. Na5 $13 {
[%emt 0:01:31]} Bg5 $1 {[%emt 0:06:17] Les pièces Blanches sont un peu
désorganisées} 25. f4 {[%emt 0:14:22]} Nxf4 $1 {[%emt 0:00:36]} 26. gxf4 {
[%emt 0:00:18]} Bxf4 {[%emt 0:00:15][%csl Ra4]} 27. Naxc6 $2 {[%emt 0:05:02]} (
27. Nab3 Bxc1 28. Rxc1 {[%csl Ra8] Et les Blancs peuvent peut-être tenir la
position}) 27... Bxc1 {[%emt 0:01:08]} 28. Rxc1 {[%emt 0:00:01]} Qf4 {[%emt 0:
02:11]} 29. Rf1 {[%emt 0:00:01]} (29. Nxd8 Qxc1+) 29... Bxc6 {[%emt 0:00:37]}
30. Bxc6 {[%emt 0:04:51]} Qe3+ {[%emt 0:03:37]} 31. Kh1 {[%emt 0:00:48]} Rxd4 {
[%emt 0:00:07]} 32. Qxa7 {[%emt 0:00:06]} Rf8 {[%emt 0:00:17]} 33. Bg2 {
[%emt 0:01:14]} Rc4 {[%emt 0:01:52]} 34. Bd5 {[%emt 0:01:50]} Rc1 {[%emt 0:00:
33]} 0-1